{"text_format":"1","workbook":"xlsx","n_sheets":10,"sheets":["FAQJA E PARE","1. PERMBLEDHJA E INDIKATOREVE","2TOTALI I MBETJEVE TE MBLEDHURA","3TOTAL I MBETJEVE TE GJENERUARA","4. STRUKTURA E MBETJEVE URBANE","6. PERDORIMI I MBETJEVE ","5. DEPONIMI","7.  MBULIMI I SHPENZIMEVE","8MBLEDHJA E TRAJTIMI I MBETJEVE","9. INFORMACION PER MBETJET"],"not_rendered":{"charts":9,"images":0,"macros":1,"external_links":0,"defined_names":9,"comments":6,"pivot_tables":0},"unopened":[],"bounds":{"document_bytes":16777216,"sheet_cells":100000,"rows_first":2000,"rows_last":500,"rows_between":2000,"halvings":0,"cell_chars":16384,"cell_head_chars":4096},"cells_cut":0,"cells_raw":0,"read":"whole","date_system":"1900"}

{"sheet":"FAQJA E PARE","index":0,"n_rows":49,"n_cols":7,"rows_kept":49,"cut":false,"hidden":false,"merged":[[0,0,2,10],[14,6,14,9],[17,6,17,9],[7,5,14,5],[7,6,7,9],[8,6,8,9],[9,6,9,9],[10,6,10,9],[11,6,11,9],[12,6,12,9],[13,6,13,9]]}
[" Njoftim i rëndësishëm: Me qëllim që SWIS të funksionojë si duhet, nevojitet që t'i mundësoni Makrot (Macros) përpara se të filloni t'i plotësoni të dhënat\nNjoftim i rëndësishëm: Kur ta ruani dokumenti, përdoreni opsionin \"Excel Macro-Enabled Workbook\""]
[]
[]
[]
[]
[]
[]
[null,null,null,null,null,"DATA ENTRY","2. TOTALI I MBETJEVE URBANE TE MBLEDHURA NGA GJENERUESIT E MBETJEVE"]
[null,null,null,null,null,null,"3. TOTALI I MBETJEVE URBANE TE GJENERUARA NGA TE GJITHA BURIMET E MBETJEVE"]
[null,null,null,null,null,null,"4. STRUKTURA E MBETJEVE TE PERZIERA URBANE"]
[null,null,null,null,null,null,"5. DEPONIMI"]
[null,null,null,null,null,null,"6. PERDORIMI I MBETJEVE"]
[null,null,null,null,null,null,"7. TE DHENAT FINANCIARE DHE TE PERGJITHSHME"]
[null,null,null,null,null,null,"8. INVESTIMET NE PAJISJE DHE ASETE"]
[null,null,null,null,null,null,"9. INFORMACIONI TREGUES LIDHUR ME MENAXHIMIN E MBETJEVE URBANE"]
[]
[]
[null,null,null,null,null,"RESULT","1. PERMBLEDHJA E TREGUESVE TE MENAXHIMIT TW MBETJEVE URBANE"]
[]
[]
[]
[]
[]
[]
[]
[]
[]
[]
[]
[]
[]
[]
[]
[]
[]
[]
[]
[]
[]
[]
[]
[]
[]
[]
[]
[]
[]
[]
[null,null,null,null,null,null,"Milisav Aleksic, freelance consultant, Belgrade, Serbia, milisav.aleksic@gmai.com "]

{"sheet":"1. PERMBLEDHJA E INDIKATOREVE","index":1,"n_rows":63,"n_cols":6,"rows_kept":63,"cut":false,"hidden":false,"merged":[]}
[null,"VITI",{"$f":"'2TOTALI I MBETJEVE TE MBLEDHURA'!E1","v":0}]
[null,{"$f":"'2TOTALI I MBETJEVE TE MBLEDHURA'!B2:F2","v":"Shëmbull për Bashkitë"}]
[null,"Zona në km2",{"$f":"IFERROR('2TOTALI I MBETJEVE TE MBLEDHURA'!C3,\"\")","v":0}]
[null,"Totali I Popullsisë",{"$f":"IFERROR('2TOTALI I MBETJEVE TE MBLEDHURA'!C4,\"\")","v":0}]
[null,"Totali I Familjeve",{"$f":"IFERROR('2TOTALI I MBETJEVE TE MBLEDHURA'!C5,\"\")","v":0}]
[null," PERMBLEDHJA E TREGUESVE TE MENAXHIMIT TW MBETJEVE URBANE",null,"Indicator Range","nga","tel"]
["I","MBLEDHJA DHE TRANSPORTI I MBETJEVE URBANE"]
[1,{"$f":"'7.  MBULIMI I SHPENZIMEVE'!G5","v":" Totali I popullsisë/ familjet e shërbyera"},{"$f":"IFERROR('7.  MBULIMI I SHPENZIMEVE'!I5,\"\")","v":""},"> 70%",0.7,1]
[2," Shërbimi që mbulon zonat urbane",{"$f":"IFERROR('7.  MBULIMI I SHPENZIMEVE'!I6,\"\")","v":""},"> 90%",0.9,1]
[3,"Shërbimi që mbulon  zonat rurale",{"$f":"IFERROR('7.  MBULIMI I SHPENZIMEVE'!I7,\"\")","v":""},"> 60%",0.6,1]
[4,"MESATARJA e mbetjeve të mbledhura të prodhuara nga familjet/kg/ditë ",{"$f":"IFERROR('2TOTALI I MBETJEVE TE MBLEDHURA'!J10,\"\")","v":""},"1,05 - 3,6kg",1.0499999999999998,3.5999999999999996]
[5,{"$f":"'3TOTAL I MBETJEVE TE GJENERUARA'!B6","v":"MESATARJA e mbetjeve familjare të mbledhura për frymë /kg/ditë"},{"$f":"IFERROR('3TOTAL I MBETJEVE TE GJENERUARA'!C6,\"\")","v":""},"0,35 - 1,2kg",0.35,1.2]
[6,{"$f":"'7.  MBULIMI I SHPENZIMEVE'!B22","v":"Sasia e mbeturinave të grumbulluara në vit për punëtor SWM / ton"},{"$f":"IFERROR('7.  MBULIMI I SHPENZIMEVE'!C22,\"\")","v":""},"> 650 ton/Empl.",650,1600]
[7,{"$f":"'7.  MBULIMI I SHPENZIMEVE'!B23","v":"Numri I popullesisë të shërbyer për cdo punëtor të SWM"},{"$f":"IFERROR('7.  MBULIMI I SHPENZIMEVE'!C23,\"\")","v":""},"> 1300 PE / Empl.",1300,7000]
[8,{"$f":"'7.  MBULIMI I SHPENZIMEVE'!B24","v":"Numri I punëtorëve në SWM për shëbimin e 1000 personave"},{"$f":"IFERROR('7.  MBULIMI I SHPENZIMEVE'!C24:D24,\"\")","v":""},"1 - 2 Empl/1000 PE",1,2]
[9,{"$f":"'7.  MBULIMI I SHPENZIMEVE'!B21","v":"Raporti i punësimeve administrative për punonjësit operative "},{"$f":"IFERROR('7.  MBULIMI I SHPENZIMEVE'!C21:D21,\"\")","v":""},null,14,25]
[10,{"$f":"'9. INFORMACION PER MBETJET'!C55","v":"Shuma e Volumit te Mbledhur ne m3"},{"$f":"'9. INFORMACION PER MBETJET'!H55","v":0},null,{"$f":"C18","v":""},{"$f":"C19","v":""}]
[11,"Vellimi I sherbimit ne m3 sipas normes se mbledhjes aktuale",{"$f":"IFERROR(('2TOTALI I MBETJEVE TE MBLEDHURA'!C10*'2TOTALI I MBETJEVE TE MBLEDHURA'!J10)/'2TOTALI I MBETJEVE TE MBLEDHURA'!G10/1000,\"\")","v":""}]
[12,"Vellimi I sherbimit ne m3 sipas normes se mbledhjes 100%",{"$f":"IFERROR(('2TOTALI I MBETJEVE TE MBLEDHURA'!C5*'2TOTALI I MBETJEVE TE MBLEDHURA'!J10)/'2TOTALI I MBETJEVE TE MBLEDHURA'!G10/1000,\"\")","v":""}]
[13,"Raporti midis rezervave dhe kerkesave sipas normes aktuale te mbledhjes",{"$f":"IFERROR(C18/C17,\"\")","v":""},{"$f":"1:1","v":0},1,1]
[14,"Raporti midis rezervave dhe kerkesave sipas normes te mbledhjes ne 100%",{"$f":"IFERROR(C19/C17,\"\")","v":""},null,1,1]
["II","SASITE E MBETJEVE URBANE"]
[15,{"$f":"'3TOTAL I MBETJEVE TE GJENERUARA'!L9","v":" Llogaritja në ton/ vit e mesatares së totalit të mbetjeve të gjeneruara "},{"$f":"IFERROR('3TOTAL I MBETJEVE TE GJENERUARA'!L21,\"\")","v":0}]
[16,{"$f":"'2TOTALI I MBETJEVE TE MBLEDHURA'!H9","v":"Sasia vjetore e mbetjeve të mbledhura në ton"},{"$f":"'2TOTALI I MBETJEVE TE MBLEDHURA'!H21","v":0}]
[17,"Ratio between waste collected in Urban and Rural areas",{"$f":"IFERROR('7.  MBULIMI I SHPENZIMEVE'!H6/'7.  MBULIMI I SHPENZIMEVE'!H7,\"\")","v":""}]
[18,{"$f":"'3TOTAL I MBETJEVE TE GJENERUARA'!M9","v":" Llogaritja e shkarkimeve te mbetjeve të pakontrolluara në ton/vit"},{"$f":"IFERROR('3TOTAL I MBETJEVE TE GJENERUARA'!M21,\"\")","v":0}]
[19,"Përqindja e shkarkimeve te mbetjeve tw pakontrolluara nga totali I gjeneruar ",{"$f":"IFERROR('3TOTAL I MBETJEVE TE GJENERUARA'!N21,\"\")","v":""}]
[20,"Përqindja e shkarkimeve te mbetjeve tw pakontrolluara nga totali I mbledhur",{"$f":"'3TOTAL I MBETJEVE TE GJENERUARA'!O21","v":0}]
["III","DEPOZITIMI I MBETJEVE URBANE NE LANDFILL PA NDARJE"]
[21,"Depozitimi I mbetjeve urbane te pa ndara ne nje landfill tradicional ne %",{"$f":"IFERROR('5. DEPONIMI'!F24,\"\")","v":""},null,0,0]
[22,"Depozitimi I mbetjeve urbane te pa ndara ne nje landfill te kontrolluar ne %",{"$f":"IFERROR('5. DEPONIMI'!H24,\"\")","v":""},null,1,1]
[23,"Djegja e mbetjeve urbane pa u ndane %",{"$f":"IFERROR('5. DEPONIMI'!J24,\"\")","v":""},null,0,1]
["IV","DEPOZITIMI I MBETJEVE URBANE PAS NDARJES"]
[24,"Depozitimi ne landfill pas ndarjes sipas % se mbledhur",{"$f":"IFERROR('6. PERDORIMI I MBETJEVE '!M24,\"\")","v":""},"65% - 35%",0.65,0.35]
[25,"Mesatarja e depozitimeve te mbetjeve familjare per capita/kg/dite",{"$f":"IFERROR(C12*C34,\"\")","v":""},"0,23 - 0,42kg/PE*day",{"$f":"E11*E34","v":0.68249999999999988},{"$f":"F11*F34","v":1.2599999999999998}]
[26,"Mbetjet e ndara bazuar ne % e totalit te mbledhur",{"$f":"IFERROR('6. PERDORIMI I MBETJEVE '!F24+'6. PERDORIMI I MBETJEVE '!H24,\"\")","v":""},"35% - 65%",{"$f":"100%-E34","v":0.35},{"$f":"100%-F34","v":0.65}]
[27,"Mesatarja mbetjeve familjarete ndara per capita/kg/dite",{"$f":"IFERROR(C12*C36,\"\")","v":""},"0,12 - 0,78kg/PE*day",{"$f":"E36*E11","v":0.36749999999999994},{"$f":"F36*F11","v":2.34}]
["V","PERPUNIMI I MBETJEVE URBANE PAS NDARJES"]
[28,"% nga totali I mbetjesve te ndara te ricikluara dhe shitura perfshi shtoqet",{"$f":"IFERROR('6. PERDORIMI I MBETJEVE '!R24,\"\")","v":""},"0% - 80%",0,0.8]
[29," % nga totali I mbetjesve te ndara te djegura pa rekuperim energjie",{"$f":"IFERROR('6. PERDORIMI I MBETJEVE '!T24,\"\")","v":""},"0% - 40%",0,0.4]
[30," % nga totali I mbetjesve te ndara ",{"$f":"IFERROR('6. PERDORIMI I MBETJEVE '!V24,\"\")","v":""},"0% - 65%",0,0.65]
["VI","KAPACITETI I PERDORIMIT TE LANDFILL"]
[31,{"$f":"'6. PERDORIMI I MBETJEVE '!B30","v":"Kapaciteti I përdorur deri në datën aktuale"},{"$f":"'6. PERDORIMI I MBETJEVE '!D30","v":0},"0 - 100%",0,1]
[32,{"$f":"'6. PERDORIMI I MBETJEVE '!B33","v":"Jetëgjatësia e Landfill - vitet e mbetura referuar normës së depozitimit aktuale pa nbarje apo djegje"},{"$f":"IFERROR('6. PERDORIMI I MBETJEVE '!D33,\"\")","v":""},"5 - 10 years",5,10]
[33,{"$f":"'6. PERDORIMI I MBETJEVE '!B32","v":"Jetegjatesia e Landfill - vitet e mbetura pas ndarjes, riciklimit dhe rikuperimit"},{"$f":"IFERROR('6. PERDORIMI I MBETJEVE '!D32,\"\")","v":""},"> 30 years",5,30]
[34,{"$f":"'6. PERDORIMI I MBETJEVE '!B27","v":"Mesatarja ditore e mbetjeve në ton që depozitohet pa u ndare"},{"$f":"IFERROR('6. PERDORIMI I MBETJEVE '!D27,\"\")","v":""}]
[35,{"$f":"'6. PERDORIMI I MBETJEVE '!B28","v":"Mesatarja ditore e mbetjeve në ton që depozitohet pas ndarjes"},{"$f":"IFERROR('6. PERDORIMI I MBETJEVE '!D28,\"\")","v":""}]
["VII","KOSTOT AKTUALE, INVESTIMET E PLANIFIKUARA DHE LOGARITJA E KOSTOVE NE EURO"]
[null,"Per euro/ton"]
[36,{"$f":"'7.  MBULIMI I SHPENZIMEVE'!B25","v":"Costo aktuale në euro/ton e Grumbullimit dhe Transportit të Mbetjeve"},{"$f":"IFERROR('7.  MBULIMI I SHPENZIMEVE'!C25,\"\")","v":""},null,10,45]
[37,{"$f":"'8MBLEDHJA E TRAJTIMI I MBETJEVE'!B68","v":"Llogaritja e rritjes se kostos  (euro/ton) te mbledhjes dhe transportit"},{"$f":"IFERROR('8MBLEDHJA E TRAJTIMI I MBETJEVE'!C68,\"\")","v":""}]
[38,{"$f":"'8MBLEDHJA E TRAJTIMI I MBETJEVE'!B67","v":"Llogaritja e kostos se mbledhjes dhe transportit perfshire dhe rritjen e cmimit te pjisjeve (euro/ton)"},{"$f":"IFERROR('8MBLEDHJA E TRAJTIMI I MBETJEVE'!C67,\"\")","v":""}]
[39,{"$f":"'8MBLEDHJA E TRAJTIMI I MBETJEVE'!E67","v":" Llogaritja e rritjes se shpenzimeve per investimet ne riciklim, rekuperim dhe landfill (euro/ton)"},{"$f":"IFERROR('8MBLEDHJA E TRAJTIMI I MBETJEVE'!F67,\"\")","v":""}]
[40,{"$f":"'8MBLEDHJA E TRAJTIMI I MBETJEVE'!E68","v":"Llogaritje e kostos totale te SWM (mbledhje, transport, trajtim dhe landfill) sebashku me investimet "},{"$f":"IFERROR('8MBLEDHJA E TRAJTIMI I MBETJEVE'!F68,\"\")","v":""},null,60,120]
[null,"Per Familjet"]
[41,"Kosto e mbledhjes dhe transportit e familjes/vit ne euro",{"$f":"IFERROR('2TOTALI I MBETJEVE TE MBLEDHURA'!J10*365/1000*C50,\"\")","v":""}]
[42,"Perllogaritja e rritjes se kostos se mbledhjes dhe transportit per familje/ vit ne euro",{"$f":"IFERROR(C58-C56,\"\")","v":""}]
[43,"Kosto familje/vit ne euro e llogaritur per mbledhje dhe transport",{"$f":"IFERROR('2TOTALI I MBETJEVE TE MBLEDHURA'!J10*365/1000*'8MBLEDHJA E TRAJTIMI I MBETJEVE'!C67,\"\")","v":""}]
[44,"Rritja ne euro e llogaritur ne shpenzimet vjetore te familjeve per investimet ne riciklim perpunim dhe quantities Household/Year in euro",{"$f":"IFERROR('2TOTALI I MBETJEVE TE MBLEDHURA'!J10*365/1000*'8MBLEDHJA E TRAJTIMI I MBETJEVE'!F67,\"\")","v":""}]
[45,"Llogaritja e Kostos Totale te SWM (Mbledhje, Transport, Trajtim dhe Groposje) me rritjen per investime ",{"$f":"IFERROR('2TOTALI I MBETJEVE TE MBLEDHURA'!J10*365/1000*C54,\"\")","v":""}]
[]
[]
[null,"FAQJA E PARE"]

{"sheet":"2TOTALI I MBETJEVE TE MBLEDHURA","index":2,"n_rows":22,"n_cols":10,"rows_kept":22,"cut":false,"hidden":false,"merged":[[0,4,0,5],[1,1,1,5],[0,2,0,3],[21,1,23,2],[21,3,40,9],[6,2,6,9]]}
[null,"BASHKIA","Viti "]
[null,"Shëmbull për Bashkitë"]
[null,"Zona në km2"]
[null,"Totali I Popullsisë"]
[null,"Totali I Familjeve"]
[null,"Mesatarje e pjestarëve të",{"$f":"C4/C5","v":{"$error":"#DIV/0!"}}]
[null,null,"TOTALI I MBETJEVE URBANE TE MBLEDHURA NGA GJENERUESIT E MBETJEVE"]
[null,null,1,2,2.1,3,4,5,null,6]
[null,"ORIGJINA E MBETURINAVE","Numwri total I gjeneruesve tw mbetjeve qw pwrfitojn swrbimin ","Sasia vjetore \ne mbeturinave të grumbulluara në njësitë e zgjedhura\n","Zgjidhë njësinë përkatëse","Sasitë e mbledhura të llogaritura si % e Totalit","Dendësia mesatare e mbeturinave      faktori konvertimit (t/m3)","Sasia vjetore e mbetjeve të mbledhura në ton",null,"MESATARJA e mbetjeve familjare të mbledhura për frymë /kg/ditë"]
[1,"Mbetjet e përziera e familjeve",null,null,null,{"$f":"I10/$H$21","v":{"$error":"#DIV/0!"}},null,{"$f":"IF(C10=0,D10=0,IF(D10=0,C10=0,D10*G10))","v":true},{"$f":"IFERROR(VALUE(H10),0)","v":0},{"$f":"((H10/C10)/365)*1000","v":{"$error":"#DIV/0!"}}]
[2,"Mbetjet Urbane nga zonat publike",null,null,null,{"$error":"#DIV/0!"},null,{"$f":"IF(C11=0,D11=0,IF(D11=0,C11=0,D11*G11))","v":true},0,{"$f":"((H11/C11)/365)*1000","v":{"$error":"#DIV/0!"}}]
[3,"Sasi të mëdha mbetjesh urbane",null,null,null,{"$error":"#DIV/0!"},null,true,0,{"$error":"#DIV/0!"}]
[4,"Subjekte Tregtare",null,null,null,{"$error":"#DIV/0!"},null,true,0,{"$error":"#DIV/0!"}]
[5,"Institucione (bashki dhe të tjera)",null,null,null,{"$error":"#DIV/0!"},null,true,0,{"$error":"#DIV/0!"}]
[6,"Mbetje të padëmshme industriale",null,null,null,{"$error":"#DIV/0!"},null,true,0,{"$error":"#DIV/0!"}]
[7,"Mbetje Inerte",null,null,null,{"$error":"#DIV/0!"},null,true,0,{"$error":"#DIV/0!"}]
[8,"Mbeturina organike bujqësore",null,null,null,{"$error":"#DIV/0!"},null,true,0,{"$error":"#DIV/0!"}]
[9,"Të tjera",null,null,null,{"$error":"#DIV/0!"},null,true,0,{"$error":"#DIV/0!"}]
[10,"Të tjera",null,null,null,{"$error":"#DIV/0!"},null,true,0,{"$error":"#DIV/0!"}]
[11,"Të tjera",null,null,null,{"$error":"#DIV/0!"},null,true,0,{"$error":"#DIV/0!"}]
[null,"TOTALI",null,null,null,{"$f":"SUM(F10:F20)","v":{"$error":"#DIV/0!"}},null,{"$f":"SUM(H10:H20)","v":0}]
[null,"FAQJA E PARE",null,"Notes:"]

{"sheet":"3TOTAL I MBETJEVE TE GJENERUARA","index":3,"n_rows":23,"n_cols":14,"rows_kept":23,"cut":false,"hidden":false,"merged":[[22,1,24,2],[22,3,42,14],[0,4,0,5],[0,7,0,8],[1,1,1,8],[0,2,0,3],[6,2,6,14]]}
[null,{"$f":"'2TOTALI I MBETJEVE TE MBLEDHURA'!B1","v":"BASHKIA"},{"$f":"'2TOTALI I MBETJEVE TE MBLEDHURA'!C1","v":"Viti "},null,{"$f":"'2TOTALI I MBETJEVE TE MBLEDHURA'!E1:F1","v":0},null,null,{"$f":"'2TOTALI I MBETJEVE TE MBLEDHURA'!E1","v":0}]
[null,{"$f":"'2TOTALI I MBETJEVE TE MBLEDHURA'!B2","v":"Shëmbull për Bashkitë"}]
[null,"Totali I Popullsisë",{"$f":"'2TOTALI I MBETJEVE TE MBLEDHURA'!C4","v":0}]
[null,"Totali I Familjeve",{"$f":"'2TOTALI I MBETJEVE TE MBLEDHURA'!C5","v":0}]
[null,"Mesatarja e pjestarëve të familjeve",{"$f":"C3/C4","v":{"$error":"#DIV/0!"}}]
[null,"MESATARJA e mbetjeve familjare të mbledhura për frymë /kg/ditë",{"$f":"(L21/C3/365*1000)","v":{"$error":"#DIV/0!"}}]
[null,null," TOTALI I MBETJEVE URBANE TE GJENERUARA NGA TE GJITHA BURIMET E MBETJEVE"]
[null,null,1,2,null,null,2,3,4,5,6,7,8,9]
[null,"Origjina e Gjenerimit të Mbetjeve","Numwri total I gjeneruesve tw mbetjeve qw pwrfitojn swrbimin ","Numri total I gjeneruesve egzistues tw mbetjeve perfshirw dhe ato qw pwrfitojn shwrbim","Quantity of waste collected annually in m3","% of Total Collected","Average waste density conversion factor","Diferenca midis numerit tw gjeneruesve tw mbetjeve egzistues dhe atyre qw pwrfitojn shwrbim ","Sasia vjetore e mbetjeve të mbledhura në ton","Llogaritjae e % së sasisë që mbulohet nga shërbimi","Llogaritja (në ton)e mesatares së totalit të mbetjeve të gjeneruara (te pa mbledhura)"," Llogaritja në ton/ vit e mesatares së totalit të mbetjeve të gjeneruara "," Llogaritja e shkarkimeve te mbetjeve të pakontrolluara në ton/vit","Sasia e përafërt e mbeturinave të hedhura në % të mbeturinave të grumbulluara"]
[1,{"$f":"'2TOTALI I MBETJEVE TE MBLEDHURA'!B10","v":"Mbetjet e përziera e familjeve"},{"$f":"'2TOTALI I MBETJEVE TE MBLEDHURA'!C10","v":0},null,{"$f":"IF('2TOTALI I MBETJEVE TE MBLEDHURA'!H10=FALSE,'2TOTALI I MBETJEVE TE MBLEDHURA'!D10=0,'2TOTALI I MBETJEVE TE MBLEDHURA'!D10)","v":0},{"$f":"E10/$E$21","v":{"$error":"#DIV/0!"}},{"$f":"'2TOTALI I MBETJEVE TE MBLEDHURA'!G10","v":0},{"$f":"D10-C10","v":0},{"$f":"E10*G10","v":0},{"$f":"C10/D10","v":{"$error":"#DIV/0!"}},{"$f":"IFERROR((I10*(1-J10))/J10,0)","v":0},{"$f":"IFERROR(IF(J10=0,K10,I10/J10),0)","v":0},{"$f":"L10-I10","v":0},{"$f":"M10/L10","v":{"$error":"#DIV/0!"}}]
[2,{"$f":"'2TOTALI I MBETJEVE TE MBLEDHURA'!B11","v":"Mbetjet Urbane nga zonat publike"},{"$f":"'2TOTALI I MBETJEVE TE MBLEDHURA'!C11","v":0},null,{"$f":"IF('2TOTALI I MBETJEVE TE MBLEDHURA'!H11=FALSE,'2TOTALI I MBETJEVE TE MBLEDHURA'!D11=0,'2TOTALI I MBETJEVE TE MBLEDHURA'!D11)","v":0},{"$error":"#DIV/0!"},{"$f":"'2TOTALI I MBETJEVE TE MBLEDHURA'!G11","v":0},{"$f":"D11-C11","v":0},0,{"$f":"C11/D11","v":{"$error":"#DIV/0!"}},0,{"$f":"IFERROR(IF(J11=0,K11,I11/J11),0)","v":0},{"$f":"L11-I11","v":0},{"$error":"#DIV/0!"}]
[3,{"$f":"'2TOTALI I MBETJEVE TE MBLEDHURA'!B12","v":"Sasi të mëdha mbetjesh urbane"},{"$f":"'2TOTALI I MBETJEVE TE MBLEDHURA'!C12","v":0},null,{"$f":"IF('2TOTALI I MBETJEVE TE MBLEDHURA'!H12=FALSE,'2TOTALI I MBETJEVE TE MBLEDHURA'!D12=0,'2TOTALI I MBETJEVE TE MBLEDHURA'!D12)","v":0},{"$error":"#DIV/0!"},{"$f":"'2TOTALI I MBETJEVE TE MBLEDHURA'!G12","v":0},0,{"$f":"E12*G12","v":0},{"$error":"#DIV/0!"},0,0,0,{"$error":"#DIV/0!"}]
[4,{"$f":"'2TOTALI I MBETJEVE TE MBLEDHURA'!B13","v":"Subjekte Tregtare"},{"$f":"'2TOTALI I MBETJEVE TE MBLEDHURA'!C13","v":0},null,{"$f":"IF('2TOTALI I MBETJEVE TE MBLEDHURA'!H13=FALSE,'2TOTALI I MBETJEVE TE MBLEDHURA'!D13=0,'2TOTALI I MBETJEVE TE MBLEDHURA'!D13)","v":0},{"$error":"#DIV/0!"},{"$f":"'2TOTALI I MBETJEVE TE MBLEDHURA'!G13","v":0},0,0,{"$error":"#DIV/0!"},0,0,0,{"$error":"#DIV/0!"}]
[5,{"$f":"'2TOTALI I MBETJEVE TE MBLEDHURA'!B14","v":"Institucione (bashki dhe të tjera)"},{"$f":"'2TOTALI I MBETJEVE TE MBLEDHURA'!C14","v":0},null,{"$f":"IF('2TOTALI I MBETJEVE TE MBLEDHURA'!H14=FALSE,'2TOTALI I MBETJEVE TE MBLEDHURA'!D14=0,'2TOTALI I MBETJEVE TE MBLEDHURA'!D14)","v":0},{"$error":"#DIV/0!"},{"$f":"'2TOTALI I MBETJEVE TE MBLEDHURA'!G14","v":0},0,0,{"$error":"#DIV/0!"},0,0,0,{"$error":"#DIV/0!"}]
[6,{"$f":"'2TOTALI I MBETJEVE TE MBLEDHURA'!B15","v":"Mbetje të padëmshme industriale"},{"$f":"'2TOTALI I MBETJEVE TE MBLEDHURA'!C15","v":0},null,{"$f":"IF('2TOTALI I MBETJEVE TE MBLEDHURA'!H15=FALSE,'2TOTALI I MBETJEVE TE MBLEDHURA'!D15=0,'2TOTALI I MBETJEVE TE MBLEDHURA'!D15)","v":0},{"$error":"#DIV/0!"},{"$f":"'2TOTALI I MBETJEVE TE MBLEDHURA'!G15","v":0},0,0,{"$error":"#DIV/0!"},0,0,0,{"$error":"#DIV/0!"}]
[7,{"$f":"'2TOTALI I MBETJEVE TE MBLEDHURA'!B16","v":"Mbetje Inerte"},{"$f":"'2TOTALI I MBETJEVE TE MBLEDHURA'!C16","v":0},null,{"$f":"IF('2TOTALI I MBETJEVE TE MBLEDHURA'!H16=FALSE,'2TOTALI I MBETJEVE TE MBLEDHURA'!D16=0,'2TOTALI I MBETJEVE TE MBLEDHURA'!D16)","v":0},{"$error":"#DIV/0!"},{"$f":"'2TOTALI I MBETJEVE TE MBLEDHURA'!G16","v":0},0,0,{"$error":"#DIV/0!"},0,0,0,{"$error":"#DIV/0!"}]
[8,{"$f":"'2TOTALI I MBETJEVE TE MBLEDHURA'!B17","v":"Mbeturina organike bujqësore"},{"$f":"'2TOTALI I MBETJEVE TE MBLEDHURA'!C17","v":0},null,{"$f":"IF('2TOTALI I MBETJEVE TE MBLEDHURA'!H17=FALSE,'2TOTALI I MBETJEVE TE MBLEDHURA'!D17=0,'2TOTALI I MBETJEVE TE MBLEDHURA'!D17)","v":0},{"$error":"#DIV/0!"},{"$f":"'2TOTALI I MBETJEVE TE MBLEDHURA'!G17","v":0},0,0,{"$error":"#DIV/0!"},0,0,0,{"$error":"#DIV/0!"}]
[9,{"$f":"'2TOTALI I MBETJEVE TE MBLEDHURA'!B18","v":"Të tjera"},{"$f":"'2TOTALI I MBETJEVE TE MBLEDHURA'!C18","v":0},null,{"$f":"IF('2TOTALI I MBETJEVE TE MBLEDHURA'!H18=FALSE,'2TOTALI I MBETJEVE TE MBLEDHURA'!D18=0,'2TOTALI I MBETJEVE TE MBLEDHURA'!D18)","v":0},{"$error":"#DIV/0!"},{"$f":"'2TOTALI I MBETJEVE TE MBLEDHURA'!G18","v":0},0,0,{"$error":"#DIV/0!"},0,0,0,{"$error":"#DIV/0!"}]
[10,{"$f":"'2TOTALI I MBETJEVE TE MBLEDHURA'!B19","v":"Të tjera"},{"$f":"'2TOTALI I MBETJEVE TE MBLEDHURA'!C19","v":0},null,{"$f":"IF('2TOTALI I MBETJEVE TE MBLEDHURA'!H19=FALSE,'2TOTALI I MBETJEVE TE MBLEDHURA'!D19=0,'2TOTALI I MBETJEVE TE MBLEDHURA'!D19)","v":0},{"$f":"E19/$E$21","v":{"$error":"#DIV/0!"}},{"$f":"'2TOTALI I MBETJEVE TE MBLEDHURA'!G19","v":0},{"$f":"D19-C19","v":0},{"$f":"E19*G19","v":0},{"$f":"C19/D19","v":{"$error":"#DIV/0!"}},0,0,{"$f":"L19-I19","v":0},{"$f":"M19/L19","v":{"$error":"#DIV/0!"}}]
[11,{"$f":"'2TOTALI I MBETJEVE TE MBLEDHURA'!B20","v":"Të tjera"},{"$f":"'2TOTALI I MBETJEVE TE MBLEDHURA'!C20","v":0},null,{"$f":"IF('2TOTALI I MBETJEVE TE MBLEDHURA'!H20=FALSE,'2TOTALI I MBETJEVE TE MBLEDHURA'!D20=0,'2TOTALI I MBETJEVE TE MBLEDHURA'!D20)","v":0},{"$error":"#DIV/0!"},{"$f":"'2TOTALI I MBETJEVE TE MBLEDHURA'!G20","v":0},0,0,{"$error":"#DIV/0!"},0,0,0,{"$error":"#DIV/0!"}]
[null,"TOTALI",null,null,{"$f":"SUM(E10:E20)","v":0},null,null,null,{"$f":"SUM(I10:I20)","v":0},null,{"$f":"SUM(K10:K20)","v":0},{"$f":"SUM(L10:L20)","v":0},{"$f":"SUM(M10:M20)","v":0},{"$f":"M21/L21","v":{"$error":"#DIV/0!"}}]
[]
[null,"FAQJA E PARE",null,"Notes:  "]

{"sheet":"4. STRUKTURA E MBETJEVE URBANE","index":4,"n_rows":24,"n_cols":9,"rows_kept":24,"cut":false,"hidden":false,"merged":[[1,1,1,5],[1,7,1,11],[0,1,0,2],[23,1,25,3],[23,5,38,13]]}
[null,{"$f":"'2TOTALI I MBETJEVE TE MBLEDHURA'!B1","v":"BASHKIA"},null,{"$f":"'2TOTALI I MBETJEVE TE MBLEDHURA'!C1","v":"Viti "},{"$f":"'2TOTALI I MBETJEVE TE MBLEDHURA'!E1:F1","v":0}]
[null,{"$f":"'2TOTALI I MBETJEVE TE MBLEDHURA'!B2","v":"Shëmbull për Bashkitë"}]
[]
[null,1,2,3,4,5]
[null,"STRUKTURA E MBETJEVE TE PERZIERA URBANE","Mesatarja e Përmbajtjes","Sasia e mbetjeve te mbledhura  (ton)","Sasia e mbetjeve te gjeneruara (ton)","Sasitë e pakontrolluara (ton)",null,null,"Estimated Average Density t/m3"]
[1,"Garden Waste",null,{"$f":"'2TOTALI I MBETJEVE TE MBLEDHURA'!$H$21*C6","v":0},{"$f":"'3TOTAL I MBETJEVE TE GJENERUARA'!$L$21*C6","v":0},{"$f":"E6-D6","v":0},null,null,0.1]
[2,"Other Biodegradable waste",null,{"$f":"'2TOTALI I MBETJEVE TE MBLEDHURA'!$H$21*C7","v":0},{"$f":"'3TOTAL I MBETJEVE TE GJENERUARA'!$L$21*C7","v":0},{"$f":"E7-D7","v":0},null,null,0.14399999999999999]
[3,"Leter ",null,{"$f":"'2TOTALI I MBETJEVE TE MBLEDHURA'!$H$21*C8","v":0},{"$f":"'3TOTAL I MBETJEVE TE GJENERUARA'!$L$21*C8","v":0},0,null,null,0.33300000000000002]
[4,"Xham",null,{"$f":"'2TOTALI I MBETJEVE TE MBLEDHURA'!$H$21*C9","v":0},{"$f":"'3TOTAL I MBETJEVE TE GJENERUARA'!$L$21*C9","v":0},0,null,null,0.64]
[5,"Cardboard",null,{"$f":"'2TOTALI I MBETJEVE TE MBLEDHURA'!$H$21*C10","v":0},{"$f":"'3TOTAL I MBETJEVE TE GJENERUARA'!$L$21*C10","v":0},0,null,null,0.57569999999999999]
[6,"Cardboard with Wax",null,{"$f":"'2TOTALI I MBETJEVE TE MBLEDHURA'!$H$21*C11","v":0},{"$f":"'3TOTAL I MBETJEVE TE GJENERUARA'!$L$21*C11","v":0},0,null,null,0.32]
[7,"Cardboard with aluminium",null,{"$f":"'2TOTALI I MBETJEVE TE MBLEDHURA'!$H$21*C12","v":0},{"$f":"'3TOTAL I MBETJEVE TE GJENERUARA'!$L$21*C12","v":0},0,null,null,0.1]
[8,"Metal - Packaging and Others",null,{"$f":"'2TOTALI I MBETJEVE TE MBLEDHURA'!$H$21*C13","v":0},{"$f":"'3TOTAL I MBETJEVE TE GJENERUARA'!$L$21*C13","v":0},0]
[9,"Metal - Aluminium Cans",null,{"$f":"'2TOTALI I MBETJEVE TE MBLEDHURA'!$H$21*C14","v":0},{"$f":"'3TOTAL I MBETJEVE TE GJENERUARA'!$L$21*C14","v":0},0,null,null,0.17599999999999999]
[10,"Plastic packaging waste",null,{"$f":"'2TOTALI I MBETJEVE TE MBLEDHURA'!$H$21*C15","v":0},{"$f":"'3TOTAL I MBETJEVE TE GJENERUARA'!$L$21*C15","v":0},0,null,null,0.129]
[11,"Plastic bags",null,{"$f":"'2TOTALI I MBETJEVE TE MBLEDHURA'!$H$21*C16","v":0},{"$f":"'3TOTAL I MBETJEVE TE GJENERUARA'!$L$21*C16","v":0},0,null,null,0.224]
[12,"Hard plastic",null,{"$f":"'2TOTALI I MBETJEVE TE MBLEDHURA'!$H$21*C17","v":0},{"$f":"'3TOTAL I MBETJEVE TE GJENERUARA'!$L$21*C17","v":0},0,null,null,0.1]
[13,"Tekstile",null,{"$f":"'2TOTALI I MBETJEVE TE MBLEDHURA'!$H$21*C18","v":0},{"$f":"'3TOTAL I MBETJEVE TE GJENERUARA'!$L$21*C18","v":0},0]
[14,"Lëkurë",null,{"$f":"'2TOTALI I MBETJEVE TE MBLEDHURA'!$H$21*C19","v":0},{"$f":"'3TOTAL I MBETJEVE TE GJENERUARA'!$L$21*C19","v":0},0]
[15,"Diapers",null,{"$f":"'2TOTALI I MBETJEVE TE MBLEDHURA'!$H$21*C20","v":0},{"$f":"'3TOTAL I MBETJEVE TE GJENERUARA'!$L$21*C20","v":0},0]
[16,"Fine elements(<20mm)",null,{"$f":"'2TOTALI I MBETJEVE TE MBLEDHURA'!$H$21*C21","v":0},{"$f":"'3TOTAL I MBETJEVE TE GJENERUARA'!$L$21*C21","v":0},0]
[null,"TOTAL",{"$f":"SUM(C6:C21)","v":0},{"$f":"SUM(D6:D21)","v":0},{"$f":"SUM(E6:E21)","v":0},{"$f":"SUM(F6:F21)","v":0}]
[]
[null,"FAQJA E PARE",null,null,null,"Notes:  "]

{"sheet":"6. PERDORIMI I MBETJEVE ","index":5,"n_rows":42,"n_cols":25,"rows_kept":42,"cut":false,"hidden":false,"merged":[[41,4,61,19],[34,1,36,3],[25,16,25,24],[22,20,23,20],[22,18,23,18],[22,6,23,6],[22,8,23,8],[22,4,23,4],[4,0,5,1],[24,1,24,4],[1,1,1,4],[24,22,24,24],[0,1,0,3],[23,23,23,24],[4,23,5,24],[22,23,22,24],[22,0,22,1],[3,3,3,22],[23,0,23,1],[22,16,23,16],[1,8,1,16],[0,8,0,24]]}
[null,{"$f":"'2TOTALI I MBETJEVE TE MBLEDHURA'!B1","v":"BASHKIA"},null,null,{"$f":"'5. DEPONIMI'!E1","v":"Viti "},{"$f":"'5. DEPONIMI'!F1:G1","v":0},null,null,"kjo tabelë plotësohet/përdoret VETËM nëse ska selektim të mbeturinave në komunë. Ju lutemi referohuni në Doracakun e Përdoruesit"]
[null,{"$f":"'2TOTALI I MBETJEVE TE MBLEDHURA'!B2","v":"Shëmbull për Bashkitë"},null,null,null,null,null,null,"A selektim të mbeturinave në komunë?",null,null,null,null,null,null,null,null,"Yes"]
[]
[null,null,null,"ORGANISED SEPARATION - MUNICIPAL WASTE SEPARATED AND WASTE DEPOSITED - WASTE RECOVERY, TREATMENT AND LANDFILL LIFETIME "]
["MIXED MUNICIPAL WASTE STUCTURE ",null,null,1,2,3,4,5,6,7,8,9,10,11,12,null,13,14,15,16,17,18,19]
[null,null,"Estimated Average Content ","Sasia e mbetjeve te grumbulluara në ton"," % e Mbetjeve Urbane të ndara në burim ","Sasia (në ton) e mbetjeve urbane të ndara. ","Përqindja (%) e mbetjeve të mbledhura që ndahen në vendin e depozitimit","Sasia (në ton) e mbetjeve urbane që ndahen në vëndin e depozitimit ","Perqindja e shperndare nga totali I mbledhur (%)","Sasia (në ton) e mbetjeve të ndara.","Struktura e totalit të mbetjeve të ndara."," % e mbetjeve të grumbulluara që Depozitohen në Landfill","Sasia (në ton) e mbetjeve urbane që depozitohen në Landfill","Struktura e totalit te mbetjeve qe depozitohen ne landfill pas ndarjes si % e totalit.","Totali I % se mbetjeve te ndara dhe depozituara.",null,"% e mbetjeve te ndara te caktuara per riciklim ose stok","Mbetjet e ndara pwr riciklim dhe stok (ne ton)"," % e mbeturinave te ndara qe digjen, me ose pa rekuperim energjie.","Sasia (ne ton) e mbetjeve te ndara qe digjen, me ose pa rekuperim energjie.","% e mbeturinave te dekompozuara nga totali I mbeturinave te ndara","Mbetjet e ndara te dekompozuara ne ton","% totale e mbetjeve te ndara"]
[1,{"$f":"'4. STRUKTURA E MBETJEVE URBANE'!B6","v":"Garden Waste"},{"$f":"'4. STRUKTURA E MBETJEVE URBANE'!C6","v":0},{"$f":"'2TOTALI I MBETJEVE TE MBLEDHURA'!$H$21*C7","v":0},null,{"$f":"D7*E7","v":0},null,{"$f":"D7*G7","v":0},{"$f":"E7+G7","v":0},{"$f":"F7+H7","v":0},{"$f":"J7/J$23","v":{"$error":"#DIV/0!"}},null,{"$f":"D7*L7","v":0},{"$f":"M7/M$23","v":{"$error":"#DIV/0!"}},{"$f":"E7+G7+L7","v":0},null,null,{"$f":"(F7+H7)*Q7","v":0},null,{"$f":"(H7+F7)*S7","v":0},null,{"$f":"(F7+H7)*U7","v":0},{"$f":"Q7+S7+U7","v":0},1,{"$f":"'4. STRUKTURA E MBETJEVE URBANE'!B6","v":"Garden Waste"}]
[2,{"$f":"'4. STRUKTURA E MBETJEVE URBANE'!B7","v":"Other Biodegradable waste"},{"$f":"'4. STRUKTURA E MBETJEVE URBANE'!C7","v":0},{"$f":"'2TOTALI I MBETJEVE TE MBLEDHURA'!$H$21*C8","v":0},null,{"$f":"D8*E8","v":0},null,{"$f":"D8*G8","v":0},{"$f":"E8+G8","v":0},{"$f":"F8+H8","v":0},{"$f":"J8/J$23","v":{"$error":"#DIV/0!"}},null,{"$f":"D8*L8","v":0},{"$f":"M8/M$23","v":{"$error":"#DIV/0!"}},0,null,null,0,null,{"$f":"(H8+F8)*S8","v":0},null,{"$f":"(F8+H8)*U8","v":0},{"$f":"Q8+S8+U8","v":0},2,{"$f":"'4. STRUKTURA E MBETJEVE URBANE'!B7","v":"Other Biodegradable waste"}]
[3,{"$f":"'4. STRUKTURA E MBETJEVE URBANE'!B8","v":"Leter "},{"$f":"'4. STRUKTURA E MBETJEVE URBANE'!C8","v":0},{"$f":"'2TOTALI I MBETJEVE TE MBLEDHURA'!$H$21*C9","v":0},null,0,null,0,0,0,{"$error":"#DIV/0!"},null,0,{"$error":"#DIV/0!"},0,null,null,0,null,0,null,0,0,3,{"$f":"'4. STRUKTURA E MBETJEVE URBANE'!B8","v":"Leter "}]
[4,{"$f":"'4. STRUKTURA E MBETJEVE URBANE'!B9","v":"Xham"},{"$f":"'4. STRUKTURA E MBETJEVE URBANE'!C9","v":0},{"$f":"'2TOTALI I MBETJEVE TE MBLEDHURA'!$H$21*C10","v":0},null,0,null,0,0,0,{"$error":"#DIV/0!"},null,0,{"$error":"#DIV/0!"},0,null,null,0,null,0,null,0,0,4,{"$f":"'4. STRUKTURA E MBETJEVE URBANE'!B9","v":"Xham"}]
[5,{"$f":"'4. STRUKTURA E MBETJEVE URBANE'!B10","v":"Cardboard"},{"$f":"'4. STRUKTURA E MBETJEVE URBANE'!C10","v":0},{"$f":"'2TOTALI I MBETJEVE TE MBLEDHURA'!$H$21*C11","v":0},null,0,null,0,0,0,{"$error":"#DIV/0!"},null,0,{"$error":"#DIV/0!"},0,null,null,0,null,0,null,0,0,5,{"$f":"'4. STRUKTURA E MBETJEVE URBANE'!B10","v":"Cardboard"}]
[6,{"$f":"'4. STRUKTURA E MBETJEVE URBANE'!B11","v":"Cardboard with Wax"},{"$f":"'4. STRUKTURA E MBETJEVE URBANE'!C11","v":0},{"$f":"'2TOTALI I MBETJEVE TE MBLEDHURA'!$H$21*C12","v":0},null,0,null,0,0,0,{"$error":"#DIV/0!"},null,0,{"$error":"#DIV/0!"},0,null,null,0,null,0,null,0,0,6,{"$f":"'4. STRUKTURA E MBETJEVE URBANE'!B11","v":"Cardboard with Wax"}]
[7,{"$f":"'4. STRUKTURA E MBETJEVE URBANE'!B12","v":"Cardboard with aluminium"},{"$f":"'4. STRUKTURA E MBETJEVE URBANE'!C12","v":0},{"$f":"'2TOTALI I MBETJEVE TE MBLEDHURA'!$H$21*C13","v":0},null,0,null,0,0,0,{"$error":"#DIV/0!"},null,0,{"$error":"#DIV/0!"},0,null,null,0,null,0,null,0,0,7,{"$f":"'4. STRUKTURA E MBETJEVE URBANE'!B12","v":"Cardboard with aluminium"}]
[8,{"$f":"'4. STRUKTURA E MBETJEVE URBANE'!B13","v":"Metal - Packaging and Others"},{"$f":"'4. STRUKTURA E MBETJEVE URBANE'!C13","v":0},{"$f":"'2TOTALI I MBETJEVE TE MBLEDHURA'!$H$21*C14","v":0},null,0,null,0,0,0,{"$error":"#DIV/0!"},null,0,{"$error":"#DIV/0!"},0,null,null,0,null,0,null,0,0,8,{"$f":"'4. STRUKTURA E MBETJEVE URBANE'!B13","v":"Metal - Packaging and Others"}]
[9,{"$f":"'4. STRUKTURA E MBETJEVE URBANE'!B14","v":"Metal - Aluminium Cans"},{"$f":"'4. STRUKTURA E MBETJEVE URBANE'!C14","v":0},{"$f":"'2TOTALI I MBETJEVE TE MBLEDHURA'!$H$21*C15","v":0},null,0,null,0,0,0,{"$error":"#DIV/0!"},null,0,{"$error":"#DIV/0!"},0,null,null,0,null,0,null,0,0,9,{"$f":"'4. STRUKTURA E MBETJEVE URBANE'!B14","v":"Metal - Aluminium Cans"}]
[10,{"$f":"'4. STRUKTURA E MBETJEVE URBANE'!B15","v":"Plastic packaging waste"},{"$f":"'4. STRUKTURA E MBETJEVE URBANE'!C15","v":0},{"$f":"'2TOTALI I MBETJEVE TE MBLEDHURA'!$H$21*C16","v":0},null,0,null,0,0,0,{"$error":"#DIV/0!"},null,0,{"$error":"#DIV/0!"},0,null,null,0,null,0,null,0,0,10,{"$f":"'4. STRUKTURA E MBETJEVE URBANE'!B15","v":"Plastic packaging waste"}]
[11,{"$f":"'4. STRUKTURA E MBETJEVE URBANE'!B16","v":"Plastic bags"},{"$f":"'4. STRUKTURA E MBETJEVE URBANE'!C16","v":0},{"$f":"'2TOTALI I MBETJEVE TE MBLEDHURA'!$H$21*C17","v":0},null,0,null,0,0,0,{"$error":"#DIV/0!"},null,0,{"$error":"#DIV/0!"},0,null,null,0,null,0,null,0,0,11,{"$f":"'4. STRUKTURA E MBETJEVE URBANE'!B16","v":"Plastic bags"}]
[12,{"$f":"'4. STRUKTURA E MBETJEVE URBANE'!B17","v":"Hard plastic"},{"$f":"'4. STRUKTURA E MBETJEVE URBANE'!C17","v":0},{"$f":"'2TOTALI I MBETJEVE TE MBLEDHURA'!$H$21*C18","v":0},null,0,null,0,0,0,{"$error":"#DIV/0!"},null,0,{"$error":"#DIV/0!"},0,null,null,0,null,0,null,0,0,12,{"$f":"'4. STRUKTURA E MBETJEVE URBANE'!B17","v":"Hard plastic"}]
[13,{"$f":"'4. STRUKTURA E MBETJEVE URBANE'!B18","v":"Tekstile"},{"$f":"'4. STRUKTURA E MBETJEVE URBANE'!C18","v":0},{"$f":"'2TOTALI I MBETJEVE TE MBLEDHURA'!$H$21*C19","v":0},null,0,null,0,0,{"$f":"F19+H19","v":0},{"$f":"J19/J$23","v":{"$error":"#DIV/0!"}},null,0,{"$error":"#DIV/0!"},0,null,null,0,null,0,null,0,0,13,{"$f":"'4. STRUKTURA E MBETJEVE URBANE'!B18","v":"Tekstile"}]
[14,{"$f":"'4. STRUKTURA E MBETJEVE URBANE'!B19","v":"Lëkurë"},{"$f":"'4. STRUKTURA E MBETJEVE URBANE'!C19","v":0},{"$f":"'2TOTALI I MBETJEVE TE MBLEDHURA'!$H$21*C20","v":0},null,0,null,0,0,0,{"$error":"#DIV/0!"},null,0,{"$error":"#DIV/0!"},0,null,null,0,null,0,null,0,0,14,{"$f":"'4. STRUKTURA E MBETJEVE URBANE'!B19","v":"Lëkurë"}]
[15,{"$f":"'4. STRUKTURA E MBETJEVE URBANE'!B20","v":"Diapers"},{"$f":"'4. STRUKTURA E MBETJEVE URBANE'!C20","v":0},{"$f":"'2TOTALI I MBETJEVE TE MBLEDHURA'!$H$21*C21","v":0},null,0,null,0,0,0,{"$error":"#DIV/0!"},null,0,{"$error":"#DIV/0!"},0,null,null,0,null,0,null,0,0,15,{"$f":"'4. STRUKTURA E MBETJEVE URBANE'!B20","v":"Diapers"}]
[16,{"$f":"'4. STRUKTURA E MBETJEVE URBANE'!B21","v":"Fine elements(<20mm)"},{"$f":"'4. STRUKTURA E MBETJEVE URBANE'!C21","v":0},{"$f":"'2TOTALI I MBETJEVE TE MBLEDHURA'!$H$21*C22","v":0},null,0,null,0,0,0,{"$error":"#DIV/0!"},null,0,{"$error":"#DIV/0!"},0,null,null,0,null,0,null,0,0,16,{"$f":"'4. STRUKTURA E MBETJEVE URBANE'!B21","v":"Fine elements(<20mm)"}]
["TOTAL",null,{"$f":"SUM(C7:C22)","v":0},{"$f":"SUM(D7:D22)","v":0},null,{"$f":"SUM(F7:F22)","v":0},null,{"$f":"SUM(H7:H22)","v":0},null,{"$f":"SUM(J7:J22)","v":0},{"$error":"#DIV/0!"},null,{"$f":"SUM(M7:M22)","v":0},{"$f":"SUM(N7:N22)","v":{"$error":"#DIV/0!"}},{"$f":"F23+H23+M23","v":0},null,"Nga totali I mbeturinave të grumbulluara",{"$f":"SUM(R7:R22)","v":0},"Nga totali I mbeturinave të grumbulluara",{"$f":"SUM(T7:T22)","v":0},"Nga totali I mbeturinave të grumbulluara",{"$f":"SUM(V7:V22)","v":0},{"$f":"R23+T23+V23","v":0},"TOTAL"]
["% of TOTAL",null,null,null,null,{"$f":"F23/D23","v":{"$error":"#DIV/0!"}},null,{"$f":"H23/D23","v":{"$error":"#DIV/0!"}},null,{"$f":"J23/D23","v":{"$error":"#DIV/0!"}},null,null,{"$f":"M23/D23","v":{"$error":"#DIV/0!"}},null,{"$f":"O23/D23","v":{"$error":"#DIV/0!"}},null,null,{"$f":"R23/(F23+H23)","v":{"$error":"#DIV/0!"}},null,{"$f":"T23/(F23+H23)","v":{"$error":"#DIV/0!"}},null,{"$f":"V23/(F23+H23)","v":{"$error":"#DIV/0!"}},{"$f":"R24+T24+V24","v":{"$error":"#DIV/0!"}},"% of TOTAL"]
[null,{"$f":"'5. DEPONIMI'!B25:C25","v":"Jetëgjatësia e Landfill (I zakondshëm ose I kontrolluar)"},null,null,null,null,null,null,null,null,null,null,null,null,null,null,"Nga totali I mbeturinave të grumbulluara"]
[17,"Ditët vjetore të operimit të landfill",null,null,null,null,null,null,null,null,null,null,null,null,null,null," "]
[18,"Mesatarja ditore e mbetjeve në ton që depozitohet pa u ndare",null,{"$f":"D23/D26","v":{"$error":"#DIV/0!"}}]
[19,"Mesatarja ditore e mbetjeve në ton që depozitohet pas ndarjes",null,{"$f":"M23/D26","v":{"$error":"#DIV/0!"}}]
[20,"Kapaciteti I parashikuar I Landfill (në ton)"]
[21,{"$f":"'5. DEPONIMI'!B29","v":"Kapaciteti I përdorur deri në datën aktuale"}]
[22,"Kapaciteti I Mbetur (në ton)",null,{"$f":"D29*(1-D30)","v":0}]
[23,"Jetegjatesia e Landfill - vitet e mbetura pas ndarjes, riciklimit dhe rikuperimit",null,{"$f":"D31/M23","v":{"$error":"#DIV/0!"}}]
[24,"Jetëgjatësia e Landfill - vitet e mbetura referuar normës së depozitimit aktuale pa nbarje apo djegje",null,{"$f":"D31/D23","v":{"$error":"#DIV/0!"}}]
[]
[null,"FAQJA E PARE"]
[]
[]
[]
[]
[]
[]
[null,null,null,null,"Notes:  "]

{"sheet":"5. DEPONIMI","index":6,"n_rows":34,"n_cols":18,"rows_kept":34,"cut":false,"hidden":true,"merged":[[0,5,0,6],[1,1,1,3],[0,1,0,3],[25,1,25,2],[24,6,24,7],[3,1,3,10],[24,1,24,2],[25,5,31,10],[31,1,31,2],[0,8,0,25],[1,8,1,16],[33,1,34,2],[27,1,27,2],[26,1,26,2],[28,1,28,2],[29,1,29,2],[30,1,30,2]]}
[null,{"$f":"'2TOTALI I MBETJEVE TE MBLEDHURA'!B1","v":"BASHKIA"},null,null,{"$f":"'2TOTALI I MBETJEVE TE MBLEDHURA'!C1","v":"Viti "},{"$f":"'4. STRUKTURA E MBETJEVE URBANE'!E1","v":0},null,null,"kjo tabelë plotësohet/përdoret VETËM nëse ska selektim të mbeturinave në komunë. Ju lutemi referohuni në Doracakun e Përdoruesit"]
[null,{"$f":"'2TOTALI I MBETJEVE TE MBLEDHURA'!B2","v":"Shëmbull për Bashkitë"},null,null,null,null,null,null,"A selektim të mbeturinave në komunë?",null,null,null,null,null,null,null,null,"No"]
[]
[null,"MUNICIPAL WASTE DEPOSITED AND LANDFILL LIFETIME WITHOUT ORGANISED SEPARATION  MBETJET URBANE TE DEPOZITUARA DHE JETEGJATESIA E LANDFILL PA ORGANIZIMIN NDARJES SE MBETURINAVE"]
[null,1,2,3,4,5,6,7,8,9,10]
[null,"STRUKTURA E MBETJEVE TE PERZIERA URBANE",{"$f":"'4. STRUKTURA E MBETJEVE URBANE'!C5","v":"Mesatarja e Përmbajtjes"},"Sasia e mbetjeve te mbledhura  (ton)","Mbledhja e Mbetjeve Depozitimi në Landfill të zakondshëm (si % e totalit)","Mbledhja e Mbetjeve Depozitimi në Landfill të zakondshëm (në ton)","Mbledhja e Mbetjeve Depozitimi në Landfill tëkontrolluar (si % e totalit)","Mbledhja e Mbetjeve Depozitimi në Landfill tëkontrolluar (në ton)","Mbledha e mbetjeve djegja pa rekuperuar energji (si % e totalit)","Mbledha e mbetjeve djegja pa rekuperuar energji (në ton)","Depozitimi Total I Mbetjeve (4+6)"]
[1,{"$f":"'4. STRUKTURA E MBETJEVE URBANE'!B6","v":"Garden Waste"},{"$f":"'4. STRUKTURA E MBETJEVE URBANE'!C6","v":0},{"$f":"'2TOTALI I MBETJEVE TE MBLEDHURA'!$H$21*C7","v":0},null,{"$f":"D7*E7","v":0},null,{"$f":"D7*G7","v":0},null,{"$f":"D7*I7","v":0},{"$f":"E7+G7+I7","v":0}]
[2,{"$f":"'4. STRUKTURA E MBETJEVE URBANE'!B7","v":"Other Biodegradable waste"},{"$f":"'4. STRUKTURA E MBETJEVE URBANE'!C7","v":0},{"$f":"'2TOTALI I MBETJEVE TE MBLEDHURA'!$H$21*C8","v":0},null,{"$f":"D8*E8","v":0},null,{"$f":"D8*G8","v":0},null,0,0]
[3,{"$f":"'4. STRUKTURA E MBETJEVE URBANE'!B8","v":"Leter "},{"$f":"'4. STRUKTURA E MBETJEVE URBANE'!C8","v":0},{"$f":"'2TOTALI I MBETJEVE TE MBLEDHURA'!$H$21*C9","v":0},null,0,null,0,null,0,0]
[4,{"$f":"'4. STRUKTURA E MBETJEVE URBANE'!B9","v":"Xham"},{"$f":"'4. STRUKTURA E MBETJEVE URBANE'!C9","v":0},{"$f":"'2TOTALI I MBETJEVE TE MBLEDHURA'!$H$21*C10","v":0},null,0,null,0,null,0,0]
[5,{"$f":"'4. STRUKTURA E MBETJEVE URBANE'!B10","v":"Cardboard"},{"$f":"'4. STRUKTURA E MBETJEVE URBANE'!C10","v":0},{"$f":"'2TOTALI I MBETJEVE TE MBLEDHURA'!$H$21*C11","v":0},null,0,null,0,null,0,0]
[6,{"$f":"'4. STRUKTURA E MBETJEVE URBANE'!B11","v":"Cardboard with Wax"},{"$f":"'4. STRUKTURA E MBETJEVE URBANE'!C11","v":0},{"$f":"'2TOTALI I MBETJEVE TE MBLEDHURA'!$H$21*C12","v":0},null,0,null,0,null,0,0]
[7,{"$f":"'4. STRUKTURA E MBETJEVE URBANE'!B12","v":"Cardboard with aluminium"},{"$f":"'4. STRUKTURA E MBETJEVE URBANE'!C12","v":0},{"$f":"'2TOTALI I MBETJEVE TE MBLEDHURA'!$H$21*C13","v":0},null,0,null,0,null,0,0]
[8,{"$f":"'4. STRUKTURA E MBETJEVE URBANE'!B13","v":"Metal - Packaging and Others"},{"$f":"'4. STRUKTURA E MBETJEVE URBANE'!C13","v":0},{"$f":"'2TOTALI I MBETJEVE TE MBLEDHURA'!$H$21*C14","v":0},null,0,null,0,null,0,0]
[9,{"$f":"'4. STRUKTURA E MBETJEVE URBANE'!B14","v":"Metal - Aluminium Cans"},{"$f":"'4. STRUKTURA E MBETJEVE URBANE'!C14","v":0},{"$f":"'2TOTALI I MBETJEVE TE MBLEDHURA'!$H$21*C15","v":0},null,0,null,0,null,0,0]
[10,{"$f":"'4. STRUKTURA E MBETJEVE URBANE'!B15","v":"Plastic packaging waste"},{"$f":"'4. STRUKTURA E MBETJEVE URBANE'!C15","v":0},{"$f":"'2TOTALI I MBETJEVE TE MBLEDHURA'!$H$21*C16","v":0},null,0,null,0,null,0,0]
[11,{"$f":"'4. STRUKTURA E MBETJEVE URBANE'!B16","v":"Plastic bags"},{"$f":"'4. STRUKTURA E MBETJEVE URBANE'!C16","v":0},{"$f":"'2TOTALI I MBETJEVE TE MBLEDHURA'!$H$21*C17","v":0},null,0,null,0,null,0,0]
[12,{"$f":"'4. STRUKTURA E MBETJEVE URBANE'!B17","v":"Hard plastic"},{"$f":"'4. STRUKTURA E MBETJEVE URBANE'!C17","v":0},{"$f":"'2TOTALI I MBETJEVE TE MBLEDHURA'!$H$21*C18","v":0},null,0,null,0,null,0,0]
[13,{"$f":"'4. STRUKTURA E MBETJEVE URBANE'!B18","v":"Tekstile"},{"$f":"'4. STRUKTURA E MBETJEVE URBANE'!C18","v":0},{"$f":"'2TOTALI I MBETJEVE TE MBLEDHURA'!$H$21*C19","v":0},null,0,null,0,null,0,0]
[14,{"$f":"'4. STRUKTURA E MBETJEVE URBANE'!B19","v":"Lëkurë"},{"$f":"'4. STRUKTURA E MBETJEVE URBANE'!C19","v":0},{"$f":"'2TOTALI I MBETJEVE TE MBLEDHURA'!$H$21*C20","v":0},null,0,null,0,null,0,0]
[15,{"$f":"'4. STRUKTURA E MBETJEVE URBANE'!B20","v":"Diapers"},{"$f":"'4. STRUKTURA E MBETJEVE URBANE'!C20","v":0},{"$f":"'2TOTALI I MBETJEVE TE MBLEDHURA'!$H$21*C21","v":0},null,0,null,0,null,0,0]
[16,{"$f":"'4. STRUKTURA E MBETJEVE URBANE'!B21","v":"Fine elements(<20mm)"},{"$f":"'4. STRUKTURA E MBETJEVE URBANE'!C21","v":0},{"$f":"'2TOTALI I MBETJEVE TE MBLEDHURA'!$H$21*C22","v":0},null,0,null,0,null,0,0]
[null,"Totali Vjetor",{"$f":"'4. STRUKTURA E MBETJEVE URBANE'!C22","v":0},{"$f":"SUM(D7:D22)","v":0},null,{"$f":"SUM(F7:F22)","v":0},null,{"$f":"SUM(H7:H22)","v":0},null,{"$f":"SUM(J7:J22)","v":0},{"$f":"F23+H23","v":0}]
[null,"% e Totalit",null,null,null,{"$f":"F23/D23","v":{"$error":"#DIV/0!"}},null,{"$f":"H23/D23","v":{"$error":"#DIV/0!"}},null,{"$f":"J23/D23","v":{"$error":"#DIV/0!"}},{"$f":"F24+H24+J24","v":{"$error":"#DIV/0!"}}]
[null,"Jetëgjatësia e Landfill (I zakondshëm ose I kontrolluar)"]
[17,"Operimi I landfill; ditë në vit",null,null,null," Notes:"]
[18,"Mesatarja (në ton) ditore e mbetjeve të depozituara pa djegje",null,{"$f":"D23/D26","v":{"$error":"#DIV/0!"}}]
[19,"Kapaciteti I parashikuar I Landfill (në ton)"]
[20,"Kapaciteti I përdorur deri në datën aktuale"]
[21,"Kapaciteti I Mbetur",null,{"$f":"D28*(1-D29)","v":0}]
[22,"Vite të mbetura nga norma aktuale e depozitimit me djegje",null,{"$f":"D30/K23","v":{"$error":"#DIV/0!"}}]
[23,"Vite të mbetura nga norma aktuale e depozitimit pa djegje",null,{"$f":"D30/D23","v":{"$error":"#DIV/0!"}}]
[]
[null,"FAQJA E PARE"]

{"sheet":"7.  MBULIMI I SHPENZIMEVE","index":7,"n_rows":27,"n_cols":15,"rows_kept":27,"cut":false,"hidden":false,"merged":[[4,9,6,9],[18,2,18,3],[21,2,21,3],[23,2,23,3],[16,2,16,3],[20,2,20,3],[17,2,17,3],[7,6,7,9],[7,1,7,3],[19,2,19,3],[0,14,7,22],[1,8,1,11],[4,10,4,13],[26,3,37,9],[26,1,28,1],[22,2,22,3],[24,2,24,3],[0,6,0,7],[13,2,13,3],[14,2,14,3],[15,2,15,3],[12,2,12,3],[8,2,8,3],[9,2,9,3],[10,2,10,3],[11,2,11,3]]}
[null,{"$f":"'2TOTALI I MBETJEVE TE MBLEDHURA'!B1","v":"BASHKIA"},null,{"$f":"'2TOTALI I MBETJEVE TE MBLEDHURA'!C1","v":"Viti "},{"$f":"'2TOTALI I MBETJEVE TE MBLEDHURA'!E1:F1","v":0},null,"ORGANIZIMI I SHERBIMIT TE MBLEDHJES SE MBETJEVE",null,null,null,null,null,null,null,"Kjo tabelë paraqet qëndrueshmërinë financiare të shërbimeve dhe është indikative. Analizë më e detajuar e të hyrave dhe shpenzimeve dhe efikasiteti  janë të nevojshëm para ndryshimit të tarifës "]
[null,{"$f":"'2TOTALI I MBETJEVE TE MBLEDHURA'!B2","v":"Shëmbull për Bashkitë"},null,null,null,"a","Totali I Banorëve ose Familjeve",{"$f":"SUM(H3:H4)","v":0},{"$f":"IF(H2='2TOTALI I MBETJEVE TE MBLEDHURA'!C5,\"Perputhet me vleren në faqe 2- Totali I mbeturinave të grumbulluara\",\"Does not Match Value in Sheet 2-Total Waste Collected\")","v":"Perputhet me vleren në faqe 2- Totali I mbeturinave të grumbulluara"}]
[null,{"$f":"'2TOTALI I MBETJEVE TE MBLEDHURA'!B3","v":"Zona në km2"},{"$f":"'2TOTALI I MBETJEVE TE MBLEDHURA'!C3","v":0},null,null,"b","Urbane "]
[null,{"$f":"'2TOTALI I MBETJEVE TE MBLEDHURA'!B4","v":"Totali I Popullsisë"},{"$f":"'2TOTALI I MBETJEVE TE MBLEDHURA'!C4","v":0},null,null,"c","Rurale"]
[null,{"$f":"'2TOTALI I MBETJEVE TE MBLEDHURA'!B5","v":"Totali I Familjeve"},{"$f":"'2TOTALI I MBETJEVE TE MBLEDHURA'!C5","v":0},null,null,"d"," Totali I popullsisë/ familjet e shërbyera",{"$f":"SUM(H6:H7)","v":0},{"$f":"H5/H2","v":{"$error":"#DIV/0!"}},"Zona që Mbulohet nga Shërbimi ",{"$f":"IF(H5='2TOTALI I MBETJEVE TE MBLEDHURA'!C10,\"Perputhet me vleren në faqe 2- Totali I mbeturinave të grumbulluara\",\"Does not Match Value in Sheet 2-Total Waste Collected\")","v":"Perputhet me vleren në faqe 2- Totali I mbeturinave të grumbulluara"}]
[null,{"$f":"'2TOTALI I MBETJEVE TE MBLEDHURA'!B6","v":"Mesatarje e pjestarëve të"},{"$f":"'2TOTALI I MBETJEVE TE MBLEDHURA'!C6","v":{"$error":"#DIV/0!"}},null,null,"e","Urbane ",null,{"$f":"H6/H3","v":{"$error":"#DIV/0!"}}]
[null,null,null,null,null,"f","Rurale",null,{"$f":"H7/H4","v":{"$error":"#DIV/0!"}}]
[null,"TE DHENAT FINANCIARE DHE TE PERGJITHSHME",null,null,null,null,"TARIFAT"]
[1,"Kompania e shërbimeve -  Emrin dhe vendndodhjen e operatorit",null,null,null,1,"Perfituesit e Sherbimit dhe Perdoruesit","Tarifat aktuale. Politika specifike për tafifat e faturimit për pwrfituesit e shwrbimit (për m2 ose m3 në muaj, për kg/ ose të tjera)në euro","Tarifa e nevojshme ne euro per te arritur mbledhjen e te ardhurave 100 %","Necessary tariff in euro to achieve results as 100%  revenue collection","Indeksi I rritjes tarifore"]
[2,"Aktivitetet dhe Shërbimet Kryesore",null,null,null,2,null,null,null,{"$f":"H10/$C$12","v":{"$error":"#DIV/0!"}},{"$f":"J10/H10","v":{"$error":"#DIV/0!"}}]
[3,"Sasia e të ardhurave te SWM(Sherbimi I menaxhimit te Mbetjeve) nga totali I përgjithshëm I te ardhurave të kompanive ",null,null,null,3,null,null,null,{"$error":"#DIV/0!"},{"$error":"#DIV/0!"}]
[4,"% e të ardhurave të faturuara/mbledhura nga SWM",null,null,null,4,null,null,null,{"$error":"#DIV/0!"},{"$error":"#DIV/0!"}]
[5,"Te ardhurat vjetore ne euro që përfitohen nga SWM",null,null,null,5,null,null,null,{"$error":"#DIV/0!"},{"$error":"#DIV/0!"}]
[6,"Shpenzimet në euro (kosto e materjaleve, rrogat, zhvleresimet dhe kosto të tjera) që lidhen me mbledhjen dhe transportimin e mbetjeve.",null,null,null,6,null,null,null,{"$error":"#DIV/0!"},{"$error":"#DIV/0!"}]
[7,"Përfitimet/humbjet operacionale në euro",{"$f":"C13-C14","v":0},null,null,7,null,null,null,{"$error":"#DIV/0!"},{"$error":"#DIV/0!"}]
[8,"Rritja e të ardhurave e nevojshme për të mbuluar humbjet/fitimet mbi koston e caktuar operacionale.",{"$f":"C15/-C13","v":{"$error":"#DIV/0!"}},null,null,8,null,null,null,{"$error":"#DIV/0!"},{"$error":"#DIV/0!"}]
[9,"Ulje të shpenzimeve e nevojshme për të mbuluar humbjet apo kostot operacionale nën të ardhurat.",{"$f":"C15/C14","v":{"$error":"#DIV/0!"}},null,null,9,null,null,null,{"$error":"#DIV/0!"},{"$error":"#DIV/0!"}]
[10,"Totali vjetor I mbetjeve të mbledhura në ton",{"$f":"'2TOTALI I MBETJEVE TE MBLEDHURA'!H21","v":0},null,null,10,null,null,null,{"$error":"#DIV/0!"},{"$error":"#DIV/0!"}]
[11,"Numri I përgjithshëm I punëtorëve të punësuar në SWM përfshirë dhe administratorin",null,null,null,11,null,null,null,{"$error":"#DIV/0!"},{"$error":"#DIV/0!"}]
[12,"Numri I punëtorëve opeativ të punësuar në SWM",null,null,null,12,null,null,null,{"$error":"#DIV/0!"},{"$error":"#DIV/0!"}]
[13,"Raporti i punësimeve administrative për punonjësit operative ",{"$f":"C20/(C19-C20)","v":{"$error":"#DIV/0!"}},null,null,13,null,null,null,{"$error":"#DIV/0!"},{"$error":"#DIV/0!"}]
[14,"Sasia e mbeturinave të grumbulluara në vit për punëtor SWM / ton",{"$f":"C18/C19","v":{"$error":"#DIV/0!"}},null,null,14,null,null,null,{"$error":"#DIV/0!"},{"$error":"#DIV/0!"}]
[15,"Numri I popullesisë të shërbyer për cdo punëtor të SWM",{"$f":"(H5/C19)","v":{"$error":"#DIV/0!"}},null,null,15,null,null,null,{"$error":"#DIV/0!"},{"$error":"#DIV/0!"}]
[16,"Numri I punëtorëve në SWM për shëbimin e 1000 personave",{"$f":"1000/C23","v":{"$error":"#DIV/0!"}},null,null,16,null,null,null,{"$error":"#DIV/0!"},{"$error":"#DIV/0!"}]
[17,"Costo aktuale në euro/ton e Grumbullimit dhe Transportit të Mbetjeve",{"$f":"C14/C18","v":{"$error":"#DIV/0!"}},null,null,17,null,null,null,{"$error":"#DIV/0!"},{"$error":"#DIV/0!"}]
[]
[null,"FAQJA E PARE",null,"Notes: "]

{"sheet":"8MBLEDHJA E TRAJTIMI I MBETJEVE","index":8,"n_rows":72,"n_cols":10,"rows_kept":72,"cut":false,"hidden":false,"merged":[[3,1,3,9],[71,1,73,1],[64,3,66,3],[64,6,66,6],[59,1,59,5]]}
[null,{"$f":"'2TOTALI I MBETJEVE TE MBLEDHURA'!B1","v":"BASHKIA"},null,{"$f":"'2TOTALI I MBETJEVE TE MBLEDHURA'!C1","v":"Viti "},{"$f":"'2TOTALI I MBETJEVE TE MBLEDHURA'!E1:F1","v":0}]
[null,{"$f":"'2TOTALI I MBETJEVE TE MBLEDHURA'!B2","v":"Shëmbull për Bashkitë"}]
[]
[null,"INVESTIMET NE PAJISJE DHE ASETE"]
[]
[null,"EMRI I KOMPANISE OPERUESE - SHERBIMIT PUBLIK",1,2,3,4,5,6,7,8]
[null,"Lloji I paisjeve per mbledhjen dhe transportin e mbetjeve","Numri I njesive opeacionale egzistuese","Blerjet e reja te planifikuara","Cmimi I blerjeve te reja euro per njesi","Investimi I nevojshem ne euro","Koeficenti I amortizimit","Amortizimi vjetore","Planifikimi I shpenzimeve te shebimeve uha (borxh) vjetore","Amortizim dhe sherbime uha (borxh) ne vit"]
[1,"Konteniere 120 l",null,null,null,{"$f":"D8*E8","v":0},null,{"$f":"F8*G8","v":0},null,{"$f":"H8+I8","v":0}]
[2,"Konteniere 240 l",null,null,null,{"$f":"D9*E9","v":0},null,{"$f":"F9*G9","v":0},null,{"$f":"H9+I9","v":0}]
[3,"Konteniere 660 l",null,null,null,{"$f":"D10*E10","v":0},null,{"$f":"F10*G10","v":0},null,{"$f":"H10+I10","v":0}]
[4,"Konteniere 770 l",null,null,null,{"$f":"D11*E11","v":0},null,{"$f":"F11*G11","v":0},null,{"$f":"H11+I11","v":0}]
[5,"Konteniere 1100 l",null,null,null,0,null,0,null,0]
[6,"Konteniere te hapur 3,5m3",null,null,null,0,null,0,null,0]
[7,"Konteniere te hapur 5m³",null,null,null,0,null,0,null,0]
[8,"Konteniere te hapur 7m³",null,null,null,0,null,0,null,0]
[9,"Kontenier te levizshem 2,5",null,null,null,0,null,0,null,0]
[10,"Kontenier te levizshem 5m³",null,null,null,0,null,0,null,0]
[11,"Kontenier te levizshem 10m³",null,null,null,0,null,0,null,0]
[12,"Kontenier te levizshem 25m³",null,null,null,0,null,0,null,0]
[13,"Kontenier te levizshem 35m³",null,null,null,0,null,0,null,0]
[14,null,null,null,null,0,null,0,null,0]
[15,null,null,null,null,0,null,0,null,0]
[16,"Kontenier te tjere",null,null,null,{"$f":"D23*E23","v":0},null,{"$f":"F23*G23","v":0},null,0]
[null,"Totali I Pajisjeve mbledhese",{"$f":"SUM(C8:C23)","v":0},{"$f":"SUM(D8:D23)","v":0},null,{"$f":"SUM(F8:F23)","v":0},null,{"$f":"SUM(H8:H23)","v":0},{"$f":"SUM(I8:I23)","v":0},{"$f":"SUM(J8:J23)","v":0}]
[1,"Kamjon 8t",null,null,null,{"$f":"D25*E25","v":0},null,{"$f":"F25*G25","v":0},null,{"$f":"H25+I25","v":0}]
[2,"Kamjon 12t",null,null,null,{"$f":"D26*E26","v":0},null,{"$f":"F26*G26","v":0},null,{"$f":"H26+I26","v":0}]
[3,"Makine plehra-mbledhese me rrotullim",null,null,null,{"$f":"D27*E27","v":0},null,{"$f":"F27*G27","v":0},null,{"$f":"H27+I27","v":0}]
[4,"Makine plehra-mbledhese me Kompresim(ngjeshje)",null,null,null,{"$f":"D28*E28","v":0},null,{"$f":"F28*G28","v":0},null,{"$f":"H28+I28","v":0}]
[5,"Kamjon me rimorkjo shkarkuese",null,null,null,{"$f":"D29*E29","v":0},null,{"$f":"F29*G29","v":0},null,{"$f":"H29+I29","v":0}]
[6,"Kamjon me rimorkjo te sheshte",null,null,null,0,null,0,null,0]
[7,"Kamjon me kontenier te hapur",null,null,null,0,null,0,null,0]
[8,"Kamjon me Kontenier te levizshem me vinc",null,null,null,0,null,0,null,0]
[9,"Kajon me ngarkim anesore",null,null,null,0,null,0,null,0]
[10,"Traktor dhe trailer",null,null,null,0,null,0,null,0]
[11,"Mjete te tjera",null,null,null,{"$f":"D35*E35","v":0},null,{"$f":"F35*G35","v":0},null,0]
[null,"Totali I mjeteve  transportuese",{"$f":"SUM(C25:C35)","v":0},{"$f":"SUM(D25:D35)","v":0},null,{"$f":"SUM(F25:F35)","v":0},null,{"$f":"SUM(H25:H35)","v":0},{"$f":"SUM(I25:I35)","v":0},{"$f":"SUM(J25:J35)","v":0}]
[null,"TOTAL COLLECTION",null,null,null,{"$f":"F24+F36","v":0},null,{"$f":"H24+H36","v":0},{"$f":"I24+I36","v":0},{"$f":"J24+J36","v":0}]
[null,"EMRI I KOMPANISE OPERUESE - SHERBIMIT PUBLIK","1.1","2.1","3.1","4.1","5.1","6.1","7.1","8.1"]
[null,"Trajtimi I Mbetjeve, riciklim, rekuperim","Numri I njesive opeacionale egzistuese","Blerjet e reja te planifikuara","Cmimi I blerjeve te reja euro per njesi","Investimi I nevojshem ne euro","Koeficenti I amortizimit","Amortizimi vjetore","Planifikimi I shpenzimeve te shebimeve uha (borxh) vjetore","Amortizim dhe sherbime uha (borxh) ne vit"]
[1,"Investigim, projektim, leje",null,null,null,{"$f":"D40*E40","v":0},null,{"$f":"F40*G40","v":0},null,{"$f":"H40+I40","v":0}]
[2,"Blerja e tokes",null,null,null,{"$f":"D41*E41","v":0},null,{"$f":"F41*G41","v":0},null,{"$f":"H41+I41","v":0}]
[3,"Instalimet Mekanike",null,null,null,0,null,0,null,0]
[4,"Paisjet e levizshme",null,null,null,0,null,0,null,0]
[5,"Konstruksione Civile",null,null,null,0,null,0,null,0]
[6,null,null,null,null,0,null,0,null,0]
[7,"Kosto te tjera",null,null,null,0,null,0,null,{"$f":"H46+I46","v":0}]
[null,"Subtotal treatment",{"$f":"SUM(C40:C46)","v":0},null,null,{"$f":"SUM(F40:F46)","v":0},null,{"$f":"SUM(H40:H46)","v":0},{"$f":"SUM(I40:I46)","v":0},{"$f":"SUM(J40:J46)","v":0}]
[null,"EMRI I KOMPANISE OPERUESE - SHERBIMIT PUBLIK","1.2","2.2","3.2","4.2","5.2","6.2","7.2","8.2"]
[null,"Investimet e Landfill ","Numri I njesive opeacionale egzistuese","Blerjet e reja te planifikuara","Cmimi I blerjeve te reja euro per njesi","Investimi I nevojshem ne euro","Koeficenti I amortizimit","Amortizimi vjetore","Planifikimi I shpenzimeve te shebimeve uha (borxh) vjetore","Amortizim dhe sherbime uha (borxh) ne vit"]
[1,"Investigim, projektim, leje",null,null,null,0,null,0,null,0]
[2,"Blerja e tokes",null,null,null,0,null,0,null,0]
[3,"Instalimet Mekanike",null,null,null,0,null,0,null,0]
[4,"Paisjet e levizshme",null,null,null,0,null,0,null,0]
[5,"Konstruksione Civile",null,null,null,{"$f":"D54*E54","v":0},null,{"$f":"F54*G54","v":0},null,{"$f":"H54+I54","v":0}]
[6,null,null,null,null,{"$f":"D55*E55","v":0},null,{"$f":"F55*G55","v":0},null,{"$f":"H55+I55","v":0}]
[7,"Kosto te tjera",null,null,null,{"$f":"D56*E56","v":0},null,{"$f":"F56*G56","v":0},null,{"$f":"H56+I56","v":0}]
[null,"Totali I landfill",{"$f":"SUM(C50:C56)","v":0},null,null,{"$f":"SUM(F50:F56)","v":0},null,{"$f":"SUM(H50:H56)","v":0},{"$f":"SUM(I50:I56)","v":0},{"$f":"SUM(J50:J56)","v":0}]
[null,"TOTALI TRAJTIM &SHKARKIM",null,null,null,{"$f":"F47+F57","v":0},null,{"$f":"H47+H57","v":0},{"$f":"I47+I57","v":0},{"$f":"J47+J57","v":0}]
[null,"TOTALI PERFUNDIMTAR I INVESTIMIT ",null,null,null,{"$f":"SUM(F37,F58)","v":0},null,{"$f":"SUM(H37,H58)","v":0},{"$f":"SUM(I37,I58)","v":0},{"$f":"SUM(J37,J58)","v":0}]
[null,"KORIGJIMI I KOSTOS SE MBLEDHJES, TRANSPORTIT, RICIKLIMIT DHE LANDFILL "]
[1,"Shpenzimet aktuale vjetore (ne euro) per transport dhe mbledhjen e mbetjeve",{"$f":"'7.  MBULIMI I SHPENZIMEVE'!C14:D14","v":0},null,"Shpenzimet aktuale vjetore (ne euro) per transport, mbledhje, trajtim, rekuperim, dhe landfill.",{"$f":"C61","v":0}]
[2,"Llogaritja e shpenzimeve vjetore shtesë për pajisjet e mbledhjes se mbetjeve",{"$f":"J37","v":0},{"$f":"C62/$C$61","v":{"$error":"#DIV/0!"}},"Llogaritja e shpenzimeve vjetore për te gjithe investimet (capital costs)",{"$f":"J59","v":0}]
[3,"Logaritja(ne euro) e rritjes vjetore variabel te transportit dhe mbledhje se mbetjeve",null,{"$f":"C63/$C$61","v":{"$error":"#DIV/0!"}},"Llogaritje e rritjes vjetore te kostos operacionale te traljtimit dhe mirmbajtjes se landfill, totali ne euro."]
[4,"Llogaritja e rritjes se shpenzimeve vjetore",{"$f":"SUM(C62:C63)","v":0},{"$f":"C64/$C$61","v":{"$error":"#DIV/0!"}},"Llogaritja e rritjes se shpenzimeve vjetore",{"$f":"SUM(F62:F63)","v":0},{"$f":"F64/$F$61","v":{"$error":"#DIV/0!"}}]
[5,"Totali I shpenzimeve vjetore",{"$f":"SUM(C61:C63)","v":0},null,"Llogaritja e totalit te shpenzimeve vjetore",{"$f":"SUM(F61:F63)","v":0}]
[6,"Kosto aktuale (euro/ton) I transportit dhe mbledhjes se mbetjeve",{"$f":"'7.  MBULIMI I SHPENZIMEVE'!C25:D25","v":{"$error":"#DIV/0!"}},null,{"$f":"B67","v":"Llogaritja e kostos se mbledhjes dhe transportit perfshire dhe rritjen e cmimit te pjisjeve (euro/ton)"},{"$f":"C67","v":{"$error":"#DIV/0!"}}]
[7,"Llogaritja e kostos se mbledhjes dhe transportit perfshire dhe rritjen e cmimit te pjisjeve (euro/ton)",{"$f":"C66*(1+D64)","v":{"$error":"#DIV/0!"}},null," Llogaritja e rritjes se shpenzimeve per investimet ne riciklim, rekuperim dhe landfill (euro/ton)",{"$f":"F64/'2TOTALI I MBETJEVE TE MBLEDHURA'!H21","v":{"$error":"#DIV/0!"}}]
[8,"Llogaritja e rritjes se kostos  (euro/ton) te mbledhjes dhe transportit",{"$f":"C67-C66","v":{"$error":"#DIV/0!"}},{"$f":"C68/C66","v":{"$error":"#DIV/0!"}},"Llogaritje e kostos totale te SWM (mbledhje, transport, trajtim dhe landfill) sebashku me investimet ",{"$f":"F67+F66","v":{"$error":"#DIV/0!"}},{"$f":"F68/$F$69","v":{"$error":"#DIV/0!"}}]
[null,null,null,null,{"$f":"B66","v":"Kosto aktuale (euro/ton) I transportit dhe mbledhjes se mbetjeve"},{"$f":"C66","v":{"$error":"#DIV/0!"}}]
[null,null,null,null,"Llogaritja e rritjes se shpenzimeve per investimet ne mbledhje, transport, trajtim dhe landfill (ne euro).",{"$f":"F68-F69","v":{"$error":"#DIV/0!"}},{"$f":"F70/$F$69","v":{"$error":"#DIV/0!"}}]
[]
[null,"FAQJA E PARE"]

{"sheet":"9. INFORMACION PER MBETJET","index":9,"n_rows":175,"n_cols":8,"rows_kept":175,"cut":false,"hidden":false,"merged":[[174,1,176,1],[139,3,139,4],[140,3,140,4],[141,3,141,4],[143,3,143,4],[142,3,142,4],[165,3,165,4],[171,3,171,4],[145,3,145,4],[146,3,146,4],[147,3,147,4],[151,3,151,4],[152,3,152,4],[169,3,169,4],[170,3,170,4],[153,3,153,4],[57,2,57,4],[60,2,60,4],[134,3,134,4],[135,3,135,4],[132,3,132,4],[130,3,130,4],[62,2,62,4],[58,2,58,4],[137,3,137,4],[138,3,138,4],[144,3,144,4],[131,3,131,4],[133,3,133,4],[154,3,154,4],[155,3,155,4],[166,3,166,4],[167,3,167,4],[168,3,168,4],[26,2,26,4],[24,2,24,4],[29,4,29,5],[1,1,1,4],[0,1,0,4],[22,2,22,4]]}
[null," Informacioni Tregues Lidhur me Menaxhimin e Mbetjeve Urbane"]
[null,{"$f":"'2TOTALI I MBETJEVE TE MBLEDHURA'!B2:F2","v":"Shëmbull për Bashkitë"}]
[1,"Informacioni I mbledhur në nivel",null,"PO","JO"]
[null,null,"Bashkie"]
[null,null,"Qyteti"]
[null,null,"Qarku/Rajoni"]
[]
[2,"Lloji I Mbledhjes",null,"PO","JO"]
[null,null,"Tradicional"]
[null,null,"Mbledheje e Shpërndare e Mbetjeve"]
[null,null,"Mbledheje e Shpërndare e Sasive të Mëdha tëMbetjeve"]
[]
[3,"Procesi I rekuperimit të mbetjeve",null,"PO","JO"]
[null,null,"organizuar"]
[null,null,"I paorganizuar"]
[]
[4,"Vendi kryerjes së ndarjes së mbetjeve",null,"PO","JO"]
[null,null,"Shtepi"]
[null,null,"Rruge"]
[null,null,"Vendi I Groposjes"]
[null,null,"Te tjera"]
[]
[5,"Emri dhe adresa e firmes qe mbledh dhe transporton mbetjet urbane"]
[]
[6,"Emri i personit përgjegjës"]
[]
[7,"Data e fundit e hyrjes (futjes së të dhënave)"]
[]
[]
[8,"VOLUMI I MBLEDHJES - Kompanite e Sherbimit Lokale ose operatoret e mbledhjes dhe transportit te mbetjeve urbane","Mjetet per Mbledhjen e mbeturinave dhe transportimin ne vend-shkarkim","LOJI","Kapaciteti m³/ton",null,"Numri"]
[null,null,"Makine plehra-mbledhese me rrotullim"]
[null,null,"Makine plehra-mbledhese me Kompresim (ngjeshje)"]
[null,null,"Makine pleherash me rimorkjo te hapur"]
[null,null,"Traktor"]
[null,null,"Te tjera"]
[null,null,"Kontenier Riciklues"]
[null,null,"Kontenier 5 t"]
[null,null,"Te tjera"]
[null,null,"Kontenier Riciklues",null,null,null,"Number","m³"]
[null,null,"Kontenier te hapur 3,5m³",null,null,null,null,{"$f":"G40*E40","v":0}]
[null,null,"Kontenier te hapur 5 m³",null,null,null,null,{"$f":"G41*E41","v":0}]
[null,null,"Kontenier te hapur 7 m³",null,null,null,null,0]
[null,null,"Kontenier me vinç 2,5m³",null,null,null,null,0]
[null,null,"Kontenier me vinç 5 m³",null,null,null,null,0]
[null,null,"Kontenier me vinç 10 m³",null,null,null,null,0]
[null,null,"Kontenier me vinç 25 m³",null,null,null,null,0]
[null,null,"Kontenier me vinç 35 m³",null,null,null,null,0]
[null,null,"Kontenier 1.100 l",null,null,null,null,0]
[null,null,"Kontenier 660 l",null,null,null,null,0]
[null,null,"Kontenier 770 l",null,null,null,null,0]
[null,null,"Kazane 120 l",null,null,null,null,0]
[null,null,"Bins 240 l",null,null,null,null,0]
[null,null,"Kosha",null,null,null,null,0]
[null,null,"Te tjera",null,null,null,null,0]
[null,null,"Shuma e Volumit te Mbledhur ne m3",null,null,null,{"$f":"SUM(G40:G54)","v":0},{"$f":"SUM(H40:H54)","v":0}]
[]
[]
[9," - Bashkia dhe emri I vendit, gjeo koordinatat"]
[null,"Viti I fillimit te depozitimit te mbetjeve"]
[]
[10,"Mbashkite qe shkarkojne mbetejet ne landfill"]
[]
[11,"Emri dhe adresa e operatorit te landfill"]
[]
[12,"Landfill - Informacion mbi vendin e depozitimit",null,"YES","NO"]
[null,null,"Ne perputhje me EU"]
[null,null,"Vendi tradicional I depozitimit "]
[null,"Landfill - pronesia e vendit te depozitimit","Puplik"]
[null,null,"Privat"]
[null,null," Miks"]
[null,"Landfill - Statusi I vendit te depozitimit","Lejueshem"]
[null,null,"Palejueshem"]
[null,null,"I shkarkuar"]
[null,null,"Propozuar"]
[null,null,"Illegal"]
[null,"Landfill - vendi I depozitimit – Statusi Operacional","I planifikuar"]
[null,null,"Ne ndertim"]
[null,null,"Aktiv"]
[null,null,"Inaktiv"]
[null,null,"Ne proces rregullimi"]
[null,null,"Per tu mbyllur"]
[null,null,"Mbyllur"]
[null,null,"Pastruar dhe Mbyllur"]
[null,null,"Per tu percaktuar"]
[null,"Landfill - Vendi I Depozitimit -Loji I Operimit ","Federal"]
[null,null,"Shteteror"]
[null,null,"Rajonal"]
[null,null,"Qytet"]
[null,null,"Bashki"]
[null,null,"Privat"]
[null,null,"Rreth"]
[null,"Infrastruktura ne landfill","Rruga per te arritur "]
[null,null,"Rruge the brendshme"]
[null,null,"Uje"]
[null,null,"Ujra te zeza"]
[null,null,"Elektricitet"]
[null,null,"Mbledhje gazi"]
[null,null,"Ure per peshimin e kamjoneve"]
[null,null,"Paisje per larjen e makinave"]
[null,"Makinerite ne vendin e depozitimit","Buldozier"]
[null,null,"Kompresues"]
[null,null,"Te tjera - specifiko"]
[null,"Mjetet e mbrojtjes se ambjentit ne Landfill","Sistem Kullues"]
[null,null,"Kanalizimet e ujerave siperfaqesore"]
[null,null,"Mbledhja e ujerave qe kullojne"]
[null,null,"Sistemi I pastrimit te ujit"]
[null,null,"Mbulim dhe ngjeshje"]
[null,null,"Disifektim, heqje(shperngulje)"]
[null,null,"Te tjera"]
[null,"Lloji I mbetjeve te depozituara dhe teknologjia e trajtimit te mbetjeve ne landfill/vendin e depozitimit","Depozitimi I llojeve te lejuara te mbetjeve pa trajtim"]
[null,null,"Metale"]
[null,null,"Mbetje te amballazhuara"]
[null,null,"Mbetje bujqesore"]
[null,null,"Mbetje ndertimi"]
[null,null,"Mbetje elektrike"]
[null,null,"Mbetje te demshme nga familjet"]
[null,null,"Mbetje mjeksore"]
[null,null,"Mbetje kafshesh"]
[null,null,"Hi dhe llume"]
[null,null,"Gome"]
[null,null,"Materjale Inerte"]
[null,null,"Ndarja e mbetjeve ne vend"]
[null,null,"Objekte per perpunim/rekuperimin e mbetjeve"]
[null,null,"Objekte riciklimi"]
[null,null,"Mjet perzjeres"]
[null,null,"Mbledhje gazi"]
[null,null,"Djegje"]
[null,null,"Trajtime te kombinuara"]
[null,null,"Te tjera - specifiko"]
[]
[null,"Gjeometria e Landfill ","Gjatesia ne metera"]
[null,null,"Gjeresia ne metra"]
[null,null,"Zona ne m2"]
[null,null,"Volumi ne m3"]
[null,null,"Total I kapacitetit te landfill ne m3"]
[null,null,"Kapaciteti I perdorur I landfill ne m3 deri ne 2010"]
[]
[null,"Distanca ne metra e landfill nga","Zona te banuara"]
[null,null,"Perroj, lumenj, liqene"]
[null,null,"Ujesjelles"]
[null,null,"Qendra shendetesore ose Spitale"]
[null,null,"Zona te perpunimit te fushqimeve"]
[null,null,"Infrastruktura nentokesore"]
[null,null,"Linja tuash te transportimin te gazit ose naftes"]
[null,null,"Stacion treni ose autobusi"]
[null,null,"Airport"]
[null,null,"Magazina"]
[null,null,"zona te mbrojtura"]
[]
[]
[null,"Operacionet financiare per mbledhjen dhe transportin "]
[null,null," Tarifa e perdoruesit (sqarim: per familjet per capita, per familje, kg/ton ose m2 ne euro)"]
[null,null,"Tarifa e perdoruesit (sqarim:per industine dhe tregeti,  kg/ton, m2 or tjera ne euro)"]
[null,null,"Te ndara per transport dhe mbledhje per m3 ose kg/t ne euro"]
[null,null,"Ndarja nga depozitimi ne landfill per m3 ose kg/t ne euro"]
[null,null,"Tarife per mbledhjen dhe depozitim per m3 ose kg/t ne euro"]
[]
[13,"Mbulimi I kostot totale per mbledhjen dhe transportin per ne landfill/ vendi I depozitimit",null,"PO","JO"]
[null,null,"Tarifa akruale mbulon kostot operacionale"]
[null,null,"Tarifa akruale mbulon kostot operacionale perfshire dhe heqjen nga landfilli "]
[null,null,"Tarifa aktuale mbulon te gjithe kostot perfshire edhe investimet/pagesen e borxhit"]
[null,"Taksat dhe tarifa te tjera per shkarkimin e mbetjeve ne landfilldet e kontrolluar","Tarifa akruale mbulon kostot operacionale"]
[null,null,"Tarifa akruale mbulon kostot operacionale perfshire dhe heqjen nga landfilli "]
[null,null,"Tarifa aktuale mbulon te gjithe kostot perfshire edhe investimet/pagesen e borxhit"]
[]
[14,"Financimi I Investimeve","Fondet mjedisore"]
[null,"Plani per financimin e nje landfill te ri te kontrolluar pasqyruar ne euro ose perqindjen e  totalit te vleres se investimit.","Donacione nderkombetare"]
[null,null,"Ndihma kombetare "]
[null,null,"Buxheki Bashliak"]
[null,null,"Kredi direkte"]
[null,null,"Investitore privat"]
[null,null,"Total",{"$f":"SUM(D166:E171)","v":0}]
[]
[]
[null,"FAQJA E PARE"]